[Event "*** Titled Tuesday Blitz"]
[Site "Chess.com"]
[Date "2018.06.05"]
[Round "7"]
[White "KRASAVCHIK2002"]
[Black "amiralfio"]
[Result "1-0"]
[WhiteElo "2237"]
[BlackElo "2263"]
[TimeControl "180+2"]
[EndTime "14:41:37 PDT"]
[Termination "KRASAVCHIK2002 won by resignation"]

1. e4 {[%clk 0:03:01.9]} 1... c5 {[%clk 0:03:00]} 2. Nf3 {[%clk 0:03:02.9]} 2...
d6 {[%clk 0:03:00.7]} 3. d4 {[%clk 0:03:03.8]} 3... Nf6 {[%clk 0:03:00.8]} 4.
Nc3 {[%clk 0:03:03.5]} 4... cxd4 {[%clk 0:02:59.9]} 5. Nxd4 {[%clk 0:03:04.5]}
5... a6 {[%clk 0:03:00.5]} 6. Be3 {[%clk 0:03:05.3]} 6... e5 {[%clk 0:02:59.3]}
7. Nb3 {[%clk 0:03:05.9]} 7... Be6 {[%clk 0:02:59.5]} 8. f3 {[%clk 0:03:07.1]}
8... Be7 {[%clk 0:02:59.9]} 9. Qd2 {[%clk 0:03:08.1]} 9... O-O {[%clk
0:03:00.1]} 10. O-O-O {[%clk 0:03:09]} 10... a5 {[%clk 0:03:00.7]} 11. a4 {[%clk
0:02:55.3]} 11... Nc6 {[%clk 0:02:53.3]} 12. g4 {[%clk 0:02:40.4]} 12... Nb4
{[%clk 0:02:48.5]} 13. g5 {[%clk 0:02:18.9]} 13... Nh5 {[%clk 0:02:42.5]} 14.
Nd5 {[%clk 0:02:18.1]} 14... Bxd5 {[%clk 0:02:23.7]} 15. exd5 {[%clk 0:02:18.3]}
15... Rc8 {[%clk 0:02:25.2]} 16. c3 {[%clk 0:02:14.9]} 16... Qd7 {[%clk
0:02:24]} 17. Bb5 {[%clk 0:02:09.1]} 17... Qc7 {[%clk 0:02:16.3]} 18. Kb1 {[%clk
0:01:55]} 18... Na6 {[%clk 0:02:16.8]} 19. Rhg1 {[%clk 0:01:19.2]} 19... Rfd8
{[%clk 0:02:01.2]} 20. Qf2 {[%clk 0:01:17.2]} 20... Nc5 {[%clk 0:01:57.4]} 21.
Nxc5 {[%clk 0:00:56.6]} 21... dxc5 {[%clk 0:01:59.3]} 22. h4 {[%clk 0:00:28.7]}
22... f5 {[%clk 0:01:22.5]} 23. gxf6 {[%clk 0:00:24.2]} 23... Bxf6 {[%clk
0:01:21.7]} 24. Qg2 {[%clk 0:00:18.6]} 24... Nf4 {[%clk 0:01:17.9]} 25. Bxf4
{[%clk 0:00:18.2]} 25... exf4 {[%clk 0:01:19.8]} 26. Qg4 {[%clk 0:00:18.4]}
26... Qe5 {[%clk 0:01:19.3]} 27. d6 {[%clk 0:00:11.2]} 27... c4 {[%clk
0:01:12.2]} 28. Rge1 {[%clk 0:00:10.2]} 28... Qc5 {[%clk 0:01:07.6]} 29. Qe6+
{[%clk 0:00:09.2]} 29... Kh8 {[%clk 0:01:03]} 30. d7 {[%clk 0:00:09.9]} 30...
Rb8 {[%clk 0:00:59.4]} 31. Qe8+ {[%clk 0:00:09]} 31... Qf8 {[%clk 0:00:58.1]}
32. Qxf8+ {[%clk 0:00:08.7]} 32... Rxf8 {[%clk 0:00:58.6]} 33. Re8 {[%clk
0:00:09.2]} 33... h5 {[%clk 0:00:48.3]} 34. Rde1 {[%clk 0:00:07.7]} 34... Kh7
{[%clk 0:00:37.7]} 35. Rxf8 {[%clk 0:00:07.9]} 35... Rxf8 {[%clk 0:00:39.6]} 36.
Re8 {[%clk 0:00:08.7]} 36... Rf7 {[%clk 0:00:27.9]} 37. d8=Q {[%clk 0:00:09.6]}
37... Bxd8 {[%clk 0:00:29]} 38. Rxd8 {[%clk 0:00:10.9]} 38... Re7 {[%clk
0:00:30.7]} 39. Bxc4 {[%clk 0:00:11.5]} 39... Re1+ {[%clk 0:00:27.2]} 40. Ka2
{[%clk 0:00:11.8]} 40... Rh1 {[%clk 0:00:28.8]} 41. Bd3+ {[%clk 0:00:12.6]}
41... g6 {[%clk 0:00:27]} 42. Rd7+ {[%clk 0:00:13.6]} 42... Kh6 {[%clk
0:00:27.6]} 43. Rd6 {[%clk 0:00:14.4]} 43... Kg7 {[%clk 0:00:28.3]} 44. Rxg6+
{[%clk 0:00:14.9]} 44... Kf7 {[%clk 0:00:29.8]} 45. Rg5 {[%clk 0:00:15.4]} 45...
Rxh4 {[%clk 0:00:31]} 46. Bg6+ {[%clk 0:00:16]} 46... Kf6 {[%clk 0:00:31.5]} 47.
Rxh5 {[%clk 0:00:17.2]} 1-0

[Event "*** Titled Tuesday Blitz"]
[Site "Chess.com"]
[Date "2018.06.05"]
[Round "7"]
[White "EndgameGrinder"]
[Black "FMJoseHerrera"]
[Result "0-1"]
[WhiteElo "2512"]
[BlackElo "2461"]
[TimeControl "180+2"]
[EndTime "14:41:38 PDT"]
[Termination "FMJoseHerrera won by resignation"]

1. e4 {[%clk 0:03:01.9]} 1... c5 {[%clk 0:02:58.8]} 2. Nf3 {[%clk 0:03:02.4]}
2... e6 {[%clk 0:03:00.3]} 3. d4 {[%clk 0:03:03.4]} 3... cxd4 {[%clk 0:03:02.2]}
4. Nxd4 {[%clk 0:03:05]} 4... a6 {[%clk 0:03:03.7]} 5. c4 {[%clk 0:03:06]} 5...
Qc7 {[%clk 0:03:05.1]} 6. a3 {[%clk 0:03:06.6]} 6... d6 {[%clk 0:03:06.4]} 7.
Nc3 {[%clk 0:03:08]} 7... Nd7 {[%clk 0:03:07.7]} 8. Be3 {[%clk 0:03:09.2]} 8...
Ngf6 {[%clk 0:03:09.1]} 9. Rc1 {[%clk 0:03:09.5]} 9... b6 {[%clk 0:03:10]} 10.
f3 {[%clk 0:03:10.1]} 10... Bb7 {[%clk 0:03:11.3]} 11. Be2 {[%clk 0:03:11.7]}
11... Be7 {[%clk 0:03:12.7]} 12. O-O {[%clk 0:03:13.2]} 12... Rc8 {[%clk
0:03:13.7]} 13. Qd2 {[%clk 0:03:14.2]} 13... h5 {[%clk 0:03:14.6]} 14. Rfd1
{[%clk 0:02:37.7]} 14... h4 {[%clk 0:03:15.2]} 15. Bf1 {[%clk 0:02:39.2]} 15...
h3 {[%clk 0:03:14.7]} 16. g3 {[%clk 0:02:34.5]} 16... Ne5 {[%clk 0:03:14.4]} 17.
b4 {[%clk 0:02:21.8]} 17... Qb8 {[%clk 0:03:11.2]} 18. Na4 {[%clk 0:02:21]}
18... Bd8 {[%clk 0:03:06.2]} 19. c5 {[%clk 0:02:07.8]} 19... b5 {[%clk
0:02:50.8]} 20. Nb6 {[%clk 0:02:00.1]} 20... dxc5 {[%clk 0:02:40.4]} 21. bxc5
{[%clk 0:01:56.4]} 21... Rxc5 {[%clk 0:02:31.3]} 22. Rxc5 {[%clk 0:01:58.3]}
22... Bxb6 {[%clk 0:02:32.6]} 23. Qc1 {[%clk 0:01:38.6]} 23... O-O {[%clk
0:02:17.1]} 24. Be2 {[%clk 0:01:32.1]} 24... Qa7 {[%clk 0:01:34]} 25. Rc3 {[%clk
0:01:24.1]} 25... Rd8 {[%clk 0:01:31.9]} 26. Nc2 {[%clk 0:01:21.8]} 26... Rxd1+
{[%clk 0:01:18]} 27. Bxd1 {[%clk 0:01:23.7]} 27... Nc4 {[%clk 0:01:19.1]} 28.
Bxb6 {[%clk 0:01:07.8]} 28... Qxb6+ {[%clk 0:01:21]} 29. Kf1 {[%clk 0:01:08.7]}
29... Bxe4 {[%clk 0:00:56.9]} 30. fxe4 {[%clk 0:00:57.8]} 30... Nxe4 {[%clk
0:00:58.8]} 31. Re3 {[%clk 0:00:54.6]} 31... Ned2+ {[%clk 0:00:43.6]} 32. Ke2
{[%clk 0:00:51.6]} 32... Qc6 {[%clk 0:00:41.3]} 33. Kd3 {[%clk 0:00:27.2]} 33...
Qg2 {[%clk 0:00:18.3]} 34. Kc3 {[%clk 0:00:12]} 34... Qxh2 {[%clk 0:00:19.4]}
35. Be2 {[%clk 0:00:13.5]} 35... Nxe3 {[%clk 0:00:18.9]} 36. Nxe3 {[%clk
0:00:12.2]} 36... Ne4+ {[%clk 0:00:17.7]} 37. Kd4 {[%clk 0:00:11.7]} 37... Nxg3
{[%clk 0:00:17.5]} 38. Qc8+ {[%clk 0:00:11.3]} 38... Kh7 {[%clk 0:00:18.4]} 39.
Qc2+ {[%clk 0:00:12.5]} 39... g6 {[%clk 0:00:18.8]} 40. Bf3 {[%clk 0:00:08.9]}
40... Nf5+ {[%clk 0:00:17.5]} 41. Kd3 {[%clk 0:00:06.1]} 41... Qd6+ {[%clk
0:00:18.1]} 42. Ke2 {[%clk 0:00:06.8]} 42... Nd4+ {[%clk 0:00:19.2]} 0-1

[Event "*** Titled Tuesday Blitz"]
[Site "Chess.com"]
[Date "2018.06.05"]
[Round "7"]
[White "Hollywood_Chess"]
[Black "GameOverBro"]
[Result "0-1"]
[WhiteElo "2211"]
[BlackElo "2375"]
[TimeControl "180+2"]
[EndTime "14:41:45 PDT"]
[Termination "GameOverBro won by resignation"]

1. c4 {[%clk 0:03:01.9]} 1... d6 {[%clk 0:03:01.3]} 2. g3 {[%clk 0:03:02.9]}
2... Nf6 {[%clk 0:03:01.8]} 3. Bg2 {[%clk 0:03:04.2]} 3... g6 {[%clk 0:03:02.9]}
4. Nc3 {[%clk 0:03:05.6]} 4... Bg7 {[%clk 0:03:04.3]} 5. Nf3 {[%clk 0:03:05.9]}
5... O-O {[%clk 0:03:05.6]} 6. O-O {[%clk 0:03:07.3]} 6... e5 {[%clk 0:03:06.8]}
7. d4 {[%clk 0:03:08]} 7... Nc6 {[%clk 0:03:05.7]} 8. Bg5 {[%clk 0:02:59.9]}
8... exd4 {[%clk 0:03:01.8]} 9. Nxd4 {[%clk 0:03:00.5]} 9... Ne5 {[%clk
0:03:00.5]} 10. b3 {[%clk 0:02:59.5]} 10... h6 {[%clk 0:02:59.8]} 11. Bf4 {[%clk
0:02:54.1]} 11... c6 {[%clk 0:02:51.1]} 12. Qd2 {[%clk 0:02:49.6]} 12... Kh7
{[%clk 0:02:51.6]} 13. h3 {[%clk 0:02:48.6]} 13... Qe7 {[%clk 0:02:46.4]} 14.
Rad1 {[%clk 0:02:48.7]} 14... Rd8 {[%clk 0:02:34.7]} 15. e4 {[%clk 0:02:31.1]}
15... Nh5 {[%clk 0:02:18.6]} 16. Be3 {[%clk 0:02:30.1]} 16... c5 {[%clk
0:02:12.1]} 17. Nde2 {[%clk 0:02:27.8]} 17... Bxh3 {[%clk 0:02:11.4]} 18. f4
{[%clk 0:02:23.1]} 18... Bxg2 {[%clk 0:02:10.7]} 19. Kxg2 {[%clk 0:02:24.5]}
19... Ng4 {[%clk 0:02:10.3]} 20. Bg1 {[%clk 0:02:23.7]} 20... Nhf6 {[%clk
0:02:00.5]} 21. Qd3 {[%clk 0:02:18]} 21... b6 {[%clk 0:01:54.7]} 22. Rfe1 {[%clk
0:01:41.6]} 22... Qb7 {[%clk 0:01:45.4]} 23. Qf3 {[%clk 0:01:39.7]} 23... h5
{[%clk 0:01:32.8]} 24. Nc1 {[%clk 0:01:35.4]} 24... Rd7 {[%clk 0:01:28.3]} 25.
Nd5 {[%clk 0:01:32.1]} 25... Re8 {[%clk 0:01:25.4]} 26. Nxf6+ {[%clk 0:01:30.4]}
26... Bxf6 {[%clk 0:01:24.3]} 27. Re2 {[%clk 0:01:16.8]} 27... Qc6 {[%clk
0:01:24]} 28. Nd3 {[%clk 0:01:15.4]} 28... Rde7 {[%clk 0:01:24.5]} 29. Rde1
{[%clk 0:01:16.4]} 29... Bc3 {[%clk 0:01:23.3]} 30. Rc1 {[%clk 0:01:15.8]} 30...
Rxe4 {[%clk 0:01:17.4]} 31. Rxe4 {[%clk 0:01:07.4]} 31... Rxe4 {[%clk
0:01:17.7]} 32. Rxc3 {[%clk 0:00:58]} 32... Re2+ {[%clk 0:01:18.1]} 33. Nf2
{[%clk 0:00:58.6]} 33... Qe8 {[%clk 0:00:42.5]} 34. a4 {[%clk 0:00:38.5]} 34...
a5 {[%clk 0:00:42.2]} 35. Rd3 {[%clk 0:00:35.4]} 35... Qe6 {[%clk 0:00:32.3]}
36. f5 {[%clk 0:00:21.3]} 36... Ne3+ {[%clk 0:00:21.5]} 37. Rxe3 {[%clk
0:00:20.5]} 37... Qxe3 {[%clk 0:00:21.8]} 38. fxg6+ {[%clk 0:00:21.7]} 38...
fxg6 {[%clk 0:00:22.4]} 39. Qf7+ {[%clk 0:00:21.3]} 39... Kh8 {[%clk 0:00:23.3]}
40. Qf8+ {[%clk 0:00:21.9]} 40... Kh7 {[%clk 0:00:24.4]} 41. Qxd6 {[%clk
0:00:22.2]} 41... Qxb3 {[%clk 0:00:20.1]} 42. Qd7+ {[%clk 0:00:23.3]} 42... Kh6
{[%clk 0:00:20.6]} 43. Qd5 {[%clk 0:00:21.7]} 43... Qe3 {[%clk 0:00:21.2]} 44.
Kf1 {[%clk 0:00:22]} 44... Re1+ {[%clk 0:00:21.5]} 45. Kg2 {[%clk 0:00:23.3]}
45... Re2 {[%clk 0:00:22.8]} 46. Kf1 {[%clk 0:00:22.2]} 46... Re1+ {[%clk
0:00:24.1]} 47. Kg2 {[%clk 0:00:23.5]} 47... h4 {[%clk 0:00:24.8]} 48. gxh4
{[%clk 0:00:22.3]} 48... Qf4 {[%clk 0:00:22.5]} 49. Qf3 {[%clk 0:00:21.7]} 49...
Rxg1+ {[%clk 0:00:22.7]} 50. Kxg1 {[%clk 0:00:21.5]} 50... Qxf3 {[%clk
0:00:23.9]} 0-1

[Event "*** Titled Tuesday Blitz"]
[Site "Chess.com"]
[Date "2018.06.05"]
[Round "7"]
[White "carlesdc96"]
[Black "rubhani"]
[Result "1-0"]
[WhiteElo "2588"]
[BlackElo "2437"]
[TimeControl "180+2"]
[EndTime "14:41:48 PDT"]
[Termination "carlesdc96 won by resignation"]

1. e4 {[%clk 0:03:01.9]} 1... c6 {[%clk 0:02:57.7]} 2. Nf3 {[%clk 0:03:01]} 2...
d5 {[%clk 0:02:58.2]} 3. Nc3 {[%clk 0:03:01.2]} 3... Bg4 {[%clk 0:02:57.5]} 4.
h3 {[%clk 0:02:58.9]} 4... Bxf3 {[%clk 0:02:58.2]} 5. Qxf3 {[%clk 0:03:00.8]}
5... e6 {[%clk 0:02:59.7]} 6. d4 {[%clk 0:02:59.2]} 6... dxe4 {[%clk 0:02:59.8]}
7. Qxe4 {[%clk 0:02:59.4]} 7... Nf6 {[%clk 0:03:00.4]} 8. Qd3 {[%clk 0:02:58.3]}
8... Nbd7 {[%clk 0:03:01.3]} 9. g3 {[%clk 0:02:56.5]} 9... Be7 {[%clk
0:02:41.4]} 10. Bg2 {[%clk 0:02:56.8]} 10... O-O {[%clk 0:02:42.9]} 11. O-O
{[%clk 0:02:57.2]} 11... Qb6 {[%clk 0:02:39.4]} 12. Na4 {[%clk 0:02:51.2]} 12...
Qa5 {[%clk 0:02:34.5]} 13. b3 {[%clk 0:02:51.6]} 13... Rfd8 {[%clk 0:02:32.7]}
14. Bd2 {[%clk 0:02:46.2]} 14... Qc7 {[%clk 0:02:30.1]} 15. Qe2 {[%clk
0:02:45.2]} 15... Nb6 {[%clk 0:02:24.5]} 16. Nxb6 {[%clk 0:02:41.2]} 16... axb6
{[%clk 0:02:25.2]} 17. c3 {[%clk 0:02:41.9]} 17... b5 {[%clk 0:02:25.8]} 18.
Rfc1 {[%clk 0:02:31.2]} 18... Qd7 {[%clk 0:02:18.4]} 19. a4 {[%clk 0:02:28]}
19... b4 {[%clk 0:02:16.6]} 20. cxb4 {[%clk 0:02:23.3]} 20... Qxd4 {[%clk
0:02:17]} 21. Bc3 {[%clk 0:02:24.4]} 21... Qd3 {[%clk 0:02:10.1]} 22. Qxd3
{[%clk 0:02:24.5]} 22... Rxd3 {[%clk 0:02:12]} 23. b5 {[%clk 0:02:17.3]} 23...
Nd5 {[%clk 0:02:07.3]} 24. Be1 {[%clk 0:02:04.7]} 24... cxb5 {[%clk 0:02:04.3]}
25. axb5 {[%clk 0:02:05]} 25... Rxa1 {[%clk 0:02:01.8]} 26. Rxa1 {[%clk
0:02:05.9]} 26... Rxb3 {[%clk 0:02:01.8]} 27. Bf1 {[%clk 0:01:44.7]} 27... Ra3
{[%clk 0:01:37.1]} 28. Rc1 {[%clk 0:01:41.9]} 28... f5 {[%clk 0:01:28.6]} 29.
Bc4 {[%clk 0:01:36.7]} 29... Bf6 {[%clk 0:01:21]} 30. Kg2 {[%clk 0:01:34.8]}
30... Ra1 {[%clk 0:01:09.8]} 31. Rxa1 {[%clk 0:01:01]} 31... Bxa1 {[%clk
0:01:11.7]} 32. Bd2 {[%clk 0:01:02.7]} 32... Kf7 {[%clk 0:01:11.1]} 33. Kf3
{[%clk 0:01:01.5]} 33... Ke7 {[%clk 0:01:08.9]} 34. Bf4 {[%clk 0:00:54.9]} 34...
Bd4 {[%clk 0:01:03.5]} 35. Ke2 {[%clk 0:00:52.5]} 35... h6 {[%clk 0:00:58.2]}
36. h4 {[%clk 0:00:50.8]} 36... Bf6 {[%clk 0:00:37.7]} 37. h5 {[%clk 0:00:48.9]}
37... Bd4 {[%clk 0:00:36.4]} 38. Kf1 {[%clk 0:00:45.5]} 38... Nf6 {[%clk
0:00:37]} 39. Be2 {[%clk 0:00:46]} 39... Ne4 {[%clk 0:00:35.8]} 40. f3 {[%clk
0:00:44.3]} 40... Nf6 {[%clk 0:00:21.5]} 41. g4 {[%clk 0:00:39.6]} 41... fxg4
{[%clk 0:00:22.7]} 42. fxg4 {[%clk 0:00:40.6]} 42... Nd5 {[%clk 0:00:22.6]} 43.
Bd2 {[%clk 0:00:37]} 43... Kd6 {[%clk 0:00:22.7]} 44. g5 {[%clk 0:00:33.5]}
44... Be3 {[%clk 0:00:19.3]} 45. gxh6 {[%clk 0:00:29.9]} 45... Bxd2 {[%clk
0:00:20.2]} 46. h7 {[%clk 0:00:29.7]} 1-0

[Event "*** Titled Tuesday Blitz"]
[Site "Chess.com"]
[Date "2018.06.05"]
[Round "7"]
[White "NikolaGry"]
[Black "Supernotar"]
[Result "1-0"]
[WhiteElo "2606"]
[BlackElo "2433"]
[TimeControl "180+2"]
[EndTime "14:41:51 PDT"]
[Termination "NikolaGry won by checkmate"]

1. d4 {[%clk 0:03:01.9]} 1... d5 {[%clk 0:02:59.5]} 2. Nf3 {[%clk 0:03:02.6]}
2... Nf6 {[%clk 0:03:00.2]} 3. c4 {[%clk 0:03:03.3]} 3... dxc4 {[%clk
0:03:01.2]} 4. Nc3 {[%clk 0:03:02.1]} 4... a6 {[%clk 0:03:02]} 5. a4 {[%clk
0:03:01.5]} 5... Nc6 {[%clk 0:03:02.8]} 6. e4 {[%clk 0:02:57.7]} 6... Bg4 {[%clk
0:03:02.3]} 7. Be3 {[%clk 0:02:55.9]} 7... e5 {[%clk 0:03:01.7]} 8. dxe5 {[%clk
0:02:33.8]} 8... Qxd1+ {[%clk 0:02:52.1]} 9. Rxd1 {[%clk 0:02:33.3]} 9... Bxf3
{[%clk 0:02:48.9]} 10. gxf3 {[%clk 0:02:33.9]} 10... Nxe5 {[%clk 0:02:50]} 11.
f4 {[%clk 0:02:34.4]} 11... Nd3+ {[%clk 0:02:41.1]} 12. Bxd3 {[%clk 0:02:33.9]}
12... cxd3 {[%clk 0:02:42]} 13. Rxd3 {[%clk 0:02:34.7]} 13... Bb4 {[%clk
0:02:42.8]} 14. e5 {[%clk 0:02:11.9]} 14... Ne4 {[%clk 0:02:32.4]} 15. Rd4
{[%clk 0:01:31.3]} 15... Bxc3+ {[%clk 0:02:11.6]} 16. bxc3 {[%clk 0:01:31]}
16... Nc5 {[%clk 0:01:41.3]} 17. Rc4 {[%clk 0:01:25.8]} 17... Nd3+ {[%clk
0:01:24.8]} 18. Ke2 {[%clk 0:01:10.7]} 18... O-O-O {[%clk 0:01:17]} 19. Rb1
{[%clk 0:01:00.9]} 19... Rd5 {[%clk 0:00:55.5]} 20. Rd4 {[%clk 0:00:54.4]} 20...
Nxf4+ {[%clk 0:00:11.8]} 21. Bxf4 {[%clk 0:00:48.7]} 21... Rhd8 {[%clk
0:00:13.4]} 22. Rbd1 {[%clk 0:00:43.2]} 22... Rxd4 {[%clk 0:00:12.4]} 23. Rxd4
{[%clk 0:00:44]} 23... Re8 {[%clk 0:00:13.8]} 24. Kd3 {[%clk 0:00:43.4]} 24...
Re6 {[%clk 0:00:14.1]} 25. a5 {[%clk 0:00:42.3]} 25... h6 {[%clk 0:00:13.1]} 26.
h4 {[%clk 0:00:41.9]} 26... f6 {[%clk 0:00:13.5]} 27. exf6 {[%clk 0:00:41.4]}
27... Rxf6 {[%clk 0:00:14.9]} 28. Bg3 {[%clk 0:00:41.6]} 28... Rf5 {[%clk
0:00:16.2]} 29. Rf4 {[%clk 0:00:38.2]} 29... Rxa5 {[%clk 0:00:16.1]} 30. Rf8+
{[%clk 0:00:38.1]} 30... Kd7 {[%clk 0:00:17]} 31. Rf7+ {[%clk 0:00:38.9]} 31...
Ke6 {[%clk 0:00:18.4]} 32. Rxc7 {[%clk 0:00:39.5]} 32... g5 {[%clk 0:00:15]} 33.
hxg5 {[%clk 0:00:38.5]} 33... hxg5 {[%clk 0:00:14.8]} 34. Rxb7 {[%clk
0:00:39.4]} 34... Rd5+ {[%clk 0:00:14.8]} 35. Kc2 {[%clk 0:00:39.4]} 35... a5
{[%clk 0:00:15.7]} 36. c4 {[%clk 0:00:39.6]} 36... Rc5 {[%clk 0:00:15.3]} 37.
Kc3 {[%clk 0:00:39.1]} 37... g4 {[%clk 0:00:16.2]} 38. Rb5 {[%clk 0:00:38.3]}
38... Rc6 {[%clk 0:00:15.9]} 39. Rxa5 {[%clk 0:00:39]} 39... Rb6 {[%clk
0:00:17.4]} 40. Re5+ {[%clk 0:00:34.4]} 40... Kf6 {[%clk 0:00:18]} 41. Re4
{[%clk 0:00:33.7]} 41... Kf5 {[%clk 0:00:18.5]} 42. c5 {[%clk 0:00:32.3]} 42...
Rb1 {[%clk 0:00:17.9]} 43. Rc4 {[%clk 0:00:32.9]} 43... Ke6 {[%clk 0:00:16.9]}
44. c6 {[%clk 0:00:33.6]} 44... Rb8 {[%clk 0:00:17.3]} 45. Bxb8 {[%clk
0:00:32.3]} 45... Kd5 {[%clk 0:00:17.8]} 46. c7 {[%clk 0:00:32.4]} 46... g3
{[%clk 0:00:19.1]} 47. fxg3 {[%clk 0:00:32.8]} 47... Ke5 {[%clk 0:00:20.6]} 48.
c8=Q+ {[%clk 0:00:33.2]} 48... Kf6 {[%clk 0:00:22]} 49. Rf4+ {[%clk 0:00:32.7]}
49... Kg6 {[%clk 0:00:22.4]} 50. Qg4+ {[%clk 0:00:32.7]} 50... Kh7 {[%clk
0:00:23.9]} 51. Rf7+ {[%clk 0:00:32.6]} 51... Kh6 {[%clk 0:00:25.4]} 52. Bf4#
{[%clk 0:00:33.1]} 1-0

[Event "*** Titled Tuesday Blitz"]
[Site "Chess.com"]
[Date "2018.06.05"]
[Round "7"]
[White "krzysztofszczurek"]
[Black "AsaHoffmann"]
[Result "1-0"]
[WhiteElo "2189"]
[BlackElo "2053"]
[TimeControl "180+2"]
[EndTime "14:41:57 PDT"]
[Termination "krzysztofszczurek won by checkmate"]

1. e4 {[%clk 0:01:39]} 1... d6 {[%clk 0:02:59.2]} 2. Nf3 {[%clk 0:01:39.6]} 2...
Bg4 {[%clk 0:02:58.9]} 3. d4 {[%clk 0:01:40.1]} 3... Nf6 {[%clk 0:02:59]} 4. Nc3
{[%clk 0:01:40.3]} 4... c6 {[%clk 0:02:59.6]} 5. Be2 {[%clk 0:01:41.5]} 5... e6
{[%clk 0:03:00.3]} 6. Be3 {[%clk 0:01:42.5]} 6... d5 {[%clk 0:03:00.8]} 7. e5
{[%clk 0:01:43.5]} 7... Nfd7 {[%clk 0:03:01.5]} 8. h3 {[%clk 0:01:44.5]} 8...
Bh5 {[%clk 0:03:02.2]} 9. O-O {[%clk 0:01:45.5]} 9... a6 {[%clk 0:03:02.4]} 10.
Qd2 {[%clk 0:01:46.4]} 10... c5 {[%clk 0:03:02.9]} 11. Nh2 {[%clk 0:01:45.4]}
11... Bg6 {[%clk 0:03:03.1]} 12. f4 {[%clk 0:01:44]} 12... cxd4 {[%clk
0:03:03.6]} 13. Bxd4 {[%clk 0:01:44.7]} 13... Nc6 {[%clk 0:03:04.3]} 14. Bf2
{[%clk 0:01:44.2]} 14... Bc5 {[%clk 0:03:03.2]} 15. Nf3 {[%clk 0:01:42.7]} 15...
Qb6 {[%clk 0:02:58.9]} 16. Na4 {[%clk 0:01:39.8]} 16... Bxf2+ {[%clk 0:02:58.5]}
17. Rxf2 {[%clk 0:01:41]} 17... Qb4 {[%clk 0:02:56.5]} 18. Qxb4 {[%clk
0:01:36.4]} 18... Nxb4 {[%clk 0:02:56.7]} 19. c3 {[%clk 0:01:36.3]} 19... Nc2
{[%clk 0:02:47.5]} 20. Rc1 {[%clk 0:01:32]} 20... b5 {[%clk 0:02:47.8]} 21. Bd1
{[%clk 0:01:31.9]} 21... Ne3 {[%clk 0:02:47.4]} 22. g4 {[%clk 0:01:26]} 22...
Nxd1 {[%clk 0:02:42.7]} 23. Rxd1 {[%clk 0:01:26.3]} 23... bxa4 {[%clk
0:02:42.5]} 24. Nd4 {[%clk 0:01:27.6]} 24... Be4 {[%clk 0:02:41.7]} 25. Nc6
{[%clk 0:01:22.1]} 25... O-O {[%clk 0:02:39.2]} 26. f5 {[%clk 0:01:20.5]} 26...
Rfe8 {[%clk 0:02:36.3]} 27. f6 {[%clk 0:01:19.3]} 27... gxf6 {[%clk 0:02:34.6]}
28. exf6 {[%clk 0:01:19.8]} 28... Kf8 {[%clk 0:02:29.5]} 29. g5 {[%clk
0:01:18.8]} 29... Rec8 {[%clk 0:02:26.6]} 30. Ne7 {[%clk 0:01:15.3]} 30... Rcb8
{[%clk 0:02:24.5]} 31. h4 {[%clk 0:01:14.1]} 31... Ne5 {[%clk 0:02:20.7]} 32. h5
{[%clk 0:00:47.3]} 32... Nf3+ {[%clk 0:02:15.2]} 33. Kf1 {[%clk 0:00:43.1]}
33... Nxg5 {[%clk 0:02:15.6]} 34. Rd4 {[%clk 0:00:38.5]} 34... h6 {[%clk
0:02:14.8]} 35. Rxa4 {[%clk 0:00:38.5]} 35... Rb7 {[%clk 0:02:14.9]} 36. Nc6
{[%clk 0:00:33.7]} 36... Rc7 {[%clk 0:02:10.6]} 37. Ne5 {[%clk 0:00:29.2]} 37...
Rb7 {[%clk 0:02:00]} 38. Ng4 {[%clk 0:00:27.3]} 38... Rab8 {[%clk 0:01:50.4]}
39. b3 {[%clk 0:00:23.5]} 39... Kg8 {[%clk 0:01:37.4]} 40. Nxh6+ {[%clk
0:00:20.9]} 40... Kh7 {[%clk 0:01:38.1]} 41. Ng4 {[%clk 0:00:22.3]} 41... Rg8
{[%clk 0:01:38.4]} 42. Ne5 {[%clk 0:00:21.3]} 42... Nh3 {[%clk 0:01:33.7]} 43.
Rh2 {[%clk 0:00:21.2]} 43... Rg1+ {[%clk 0:01:29.7]} 44. Ke2 {[%clk 0:00:21.4]}
44... Ng5 {[%clk 0:01:29.4]} 45. Rxa6 {[%clk 0:00:20.5]} 45... Ra1 {[%clk
0:01:21.8]} 46. Ke3 {[%clk 0:00:19.6]} 46... Bf5 {[%clk 0:01:18.1]} 47. Kf4
{[%clk 0:00:19.8]} 47... Ne4 {[%clk 0:01:15.9]} 48. c4 {[%clk 0:00:20.2]} 48...
Rf1+ {[%clk 0:01:15.4]} 49. Ke3 {[%clk 0:00:20.6]} 49... dxc4 {[%clk 0:01:13.8]}
50. Nxc4 {[%clk 0:00:20.9]} 50... Rd7 {[%clk 0:01:09.7]} 51. Ra8 {[%clk
0:00:20.2]} 51... Ng3 {[%clk 0:01:09.5]} 52. Ne5 {[%clk 0:00:19]} 52... Rd5
{[%clk 0:01:09.7]} 53. Rg2 {[%clk 0:00:16.6]} 53... Rxe5+ {[%clk 0:01:09.2]} 54.
Kd4 {[%clk 0:00:18]} 54... Rd5+ {[%clk 0:01:09.9]} 55. Kc4 {[%clk 0:00:19.3]}
55... Rc1+ {[%clk 0:01:09.3]} 56. Kb4 {[%clk 0:00:19.5]} 56... Rd3 {[%clk
0:01:05.8]} 57. Rf8 {[%clk 0:00:19.7]} 57... Kh6 {[%clk 0:01:05.5]} 58. Rg8
{[%clk 0:00:18.6]} 58... Kxh5 {[%clk 0:01:03.8]} 59. Rh2+ {[%clk 0:00:18.6]}
59... Bh3 {[%clk 0:01:00.9]} 60. Rxh3# {[%clk 0:00:19.5]} 1-0